[Event "Titled Tuesday Blitz November 01 Early 2022"]
[White "Kvaloy, Aksel Bu"]
[Black "Kirillov, Dmitry"]
[WhiteFideId "1528815"]
[BlackFideId "34180572"]
[WhiteElo "2178"]
[BlackElo "2095"]
[Result "0-1"]
[Round "06"]
[TimeControl "180+1"]
[Date "2022.11.02"]
[WhiteClock "0:00:29"]
[BlackClock "0:01:49"]

1. d4 {[%clk 0:02:41]}  d5 {[%clk 0:02:59]} 2. c4 {[%clk 0:02:40]}  e6 {[%clk 0:02:59]} 3. Nf3 {[%clk 0:02:38]}  c6 {[%clk 0:02:58]} 4. Nc3 {[%clk 0:02:33]}  dxc4 {[%clk 0:02:56]} 5. e3 {[%clk 0:02:31]}  b5 {[%clk 0:02:54]} 6. a4 {[%clk 0:02:24]}  Bb4 {[%clk 0:02:54]} 7. Bd2 {[%clk 0:01:38]}  a5 {[%clk 0:02:53]} 8. axb5 {[%clk 0:01:37]}  Bxc3 {[%clk 0:02:53]} 9. Bxc3 {[%clk 0:01:37]}  cxb5 {[%clk 0:02:54]} 10. b3 {[%clk 0:01:37]}  Bb7 {[%clk 0:02:54]} 11. bxc4 {[%clk 0:01:37]}  b4 {[%clk 0:02:54]} 12. Bb2 {[%clk 0:01:37]}  Nf6 {[%clk 0:02:55]} 13. Bd3 {[%clk 0:01:36]}  Nbd7 {[%clk 0:02:55]} 14. O-O {[%clk 0:01:35]}  O-O {[%clk 0:02:56]} 15. Qc2 {[%clk 0:01:32]}  Qc7 {[%clk 0:02:56]} 16. e4 {[%clk 0:01:27]}  e5 {[%clk 0:02:56]} 17. Nxe5 {[%clk 0:01:21]}  Nxe5 {[%clk 0:02:49]} 18. dxe5 {[%clk 0:01:21]}  Nd7 {[%clk 0:02:32]} 19. f4 {[%clk 0:01:21]}  Nc5 {[%clk 0:02:33]} 20. f5 {[%clk 0:01:14]}  Rfd8 {[%clk 0:02:27]} 21. Rf3 {[%clk 0:01:09]}  Rxd3 {[%clk 0:02:25]} 22. Rxd3 {[%clk 0:01:02]}  Bxe4 {[%clk 0:02:25]} 23. f6 {[%clk 0:00:56]}  Nxd3 {[%clk 0:02:15]} 24. Qe2 {[%clk 0:00:53]}  Qc5+ {[%clk 0:02:15]} 25. Kh1 {[%clk 0:00:51]}  Nf2+ {[%clk 0:02:03]} 26. Kg1 {[%clk 0:00:51]}  Nd3+ {[%clk 0:01:59]} 27. Kh1 {[%clk 0:00:51]}  Nxb2 {[%clk 0:01:58]} 28. Qxe4 {[%clk 0:00:47]}  Re8 {[%clk 0:01:57]} 29. Qg4 {[%clk 0:00:44]}  g6 {[%clk 0:01:55]} 30. Re1 {[%clk 0:00:38]}  Nd3 {[%clk 0:01:51]} 31. Qd7 {[%clk 0:00:34]}  Nf2+ {[%clk 0:01:49]} 32. Kg1 {[%clk 0:00:35]}  Nh3+ {[%clk 0:01:48]} 33. Kh1 {[%clk 0:00:36]}  Qg1+ {[%clk 0:01:48]} 34. Rxg1 {[%clk 0:00:29]}  Nf2# {[%clk 0:01:49]} 0-1


[Site "https://www.chess.com"]

[Event "Titled Tuesday Blitz November 01 Early 2022"]
[White "Laohawirapap, Prin"]
[Black "Durarbayli, Vasif"]
[WhiteFideId "6205003"]
[BlackFideId "13402935"]
[WhiteElo "2596"]
[BlackElo "2808"]
[Result "0-1"]
[Round "06"]
[TimeControl "180+1"]
[Date "2022.11.02"]
[WhiteClock "0:00:24"]
[BlackClock "0:00:24"]

1. d4 {[%clk 0:03:00]}  Nf6 {[%clk 0:02:59]} 2. Bf4 {[%clk 0:03:01]}  c5 {[%clk 0:02:58]} 3. d5 {[%clk 0:02:59]}  d6 {[%clk 0:02:56]} 4. c4 {[%clk 0:02:57]}  b5 {[%clk 0:02:49]} 5. cxb5 {[%clk 0:02:56]}  a6 {[%clk 0:02:49]} 6. bxa6 {[%clk 0:02:54]}  Nbd7 {[%clk 0:02:46]} 7. Nc3 {[%clk 0:02:54]}  g6 {[%clk 0:02:45]} 8. Nf3 {[%clk 0:02:50]}  Bg7 {[%clk 0:02:45]} 9. e3 {[%clk 0:02:50]}  O-O {[%clk 0:02:45]} 10. h3 {[%clk 0:02:50]}  Qb6 {[%clk 0:02:44]} 11. Rb1 {[%clk 0:02:47]}  Bxa6 {[%clk 0:02:43]} 12. Bxa6 {[%clk 0:02:48]}  Qxa6 {[%clk 0:02:44]} 13. Qe2 {[%clk 0:02:46]}  Rfb8 {[%clk 0:02:37]} 14. Qxa6 {[%clk 0:02:44]}  Rxa6 {[%clk 0:02:38]} 15. Nd2 {[%clk 0:02:42]}  Nb6 {[%clk 0:02:15]} 16. e4 {[%clk 0:02:39]}  Na4 {[%clk 0:02:15]} 17. O-O {[%clk 0:02:34]}  Nh5 {[%clk 0:01:49]} 18. Bg5 {[%clk 0:02:23]}  Kf8 {[%clk 0:01:08]} 19. g4 {[%clk 0:02:13]}  Nf6 {[%clk 0:01:00]} 20. Nc4 {[%clk 0:02:11]}  Rb4 {[%clk 0:00:53]} 21. Nxa4 {[%clk 0:01:44]}  Rxc4 {[%clk 0:00:48]} 22. Nc3 {[%clk 0:01:40]}  Nxe4 {[%clk 0:00:42]} 23. Nxe4 {[%clk 0:01:41]}  Rxe4 {[%clk 0:00:43]} 24. Rfe1 {[%clk 0:01:33]}  Rxe1+ {[%clk 0:00:39]} 25. Rxe1 {[%clk 0:01:34]}  f6 {[%clk 0:00:38]} 26. Bd2 {[%clk 0:01:34]}  Rxa2 {[%clk 0:00:38]} 27. Bc3 {[%clk 0:01:34]}  Bh6 {[%clk 0:00:38]} 28. Kg2 {[%clk 0:01:30]}  Bf4 {[%clk 0:00:35]} 29. Re4 {[%clk 0:00:49]}  Be5 {[%clk 0:00:34]} 30. Bxe5 {[%clk 0:00:48]}  fxe5 {[%clk 0:00:35]} 31. b4 {[%clk 0:00:49]}  Ra4 {[%clk 0:00:25]} 32. Re3 {[%clk 0:00:46]}  Rxb4 {[%clk 0:00:24]} 33. Ra3 {[%clk 0:00:45]}  Kf7 {[%clk 0:00:20]} 34. Ra8 {[%clk 0:00:44]}  h5 {[%clk 0:00:20]} 35. gxh5 {[%clk 0:00:42]}  gxh5 {[%clk 0:00:21]} 36. Rh8 {[%clk 0:00:42]}  h4 {[%clk 0:00:21]} 37. Kf3 {[%clk 0:00:42]}  Rf4+ {[%clk 0:00:20]} 38. Ke3 {[%clk 0:00:42]}  Rd4 {[%clk 0:00:21]} 39. Rh7+ {[%clk 0:00:39]}  Ke8 {[%clk 0:00:21]} 40. Rh8+ {[%clk 0:00:36]}  Kd7 {[%clk 0:00:22]} 41. Rh7 {[%clk 0:00:37]}  c4 {[%clk 0:00:22]} 42. Rh8 {[%clk 0:00:32]}  Rd3+ {[%clk 0:00:22]} 43. Ke2 {[%clk 0:00:32]}  Rxh3 {[%clk 0:00:22]} 44. Ra8 {[%clk 0:00:30]}  Rd3 {[%clk 0:00:22]} 45. Ra4 {[%clk 0:00:29]}  Rd4 {[%clk 0:00:23]} 46. Ra3 {[%clk 0:00:27]}  Rxd5 {[%clk 0:00:22]} 47. Rc3 {[%clk 0:00:24]}  Rd4 {[%clk 0:00:22]} 48. Ke3 {[%clk 0:00:24]}  Ke6 {[%clk 0:00:22]} 49. f3 {[%clk 0:00:24]}  Rd3+ {[%clk 0:00:23]} 50. Rxd3 {[%clk 0:00:24]}  cxd3 {[%clk 0:00:24]} 0-1


[Site "https://www.chess.com"]

[Event "Titled Tuesday Blitz November 01 Early 2022"]
[White "Lewtak, Damian"]
[Black "Srebrnic, Marko"]
[WhiteFideId "1141724"]
[BlackFideId "14603616"]
[WhiteElo "2329"]
[BlackElo "2340"]
[Result "1/2-1/2"]
[Round "06"]
[TimeControl "180+1"]
[Date "2022.11.02"]
[WhiteClock "0:00:09"]
[BlackClock "0:00:18"]

1. g3 {[%clk 0:03:00]}  d6 {[%clk 0:02:58]} 2. Bg2 {[%clk 0:03:00]}  e5 {[%clk 0:02:58]} 3. c4 {[%clk 0:02:57]}  c6 {[%clk 0:02:57]} 4. Nc3 {[%clk 0:02:56]}  f5 {[%clk 0:02:54]} 5. e3 {[%clk 0:02:50]}  g6 {[%clk 0:02:48]} 6. d4 {[%clk 0:02:49]}  e4 {[%clk 0:02:47]} 7. d5 {[%clk 0:02:50]}  c5 {[%clk 0:02:47]} 8. h4 {[%clk 0:02:46]}  h5 {[%clk 0:02:46]} 9. Nh3 {[%clk 0:02:45]}  Bg7 {[%clk 0:02:41]} 10. Nf4 {[%clk 0:02:44]}  Kf7 {[%clk 0:02:41]} 11. O-O {[%clk 0:02:40]}  Nf6 {[%clk 0:02:40]} 12. f3 {[%clk 0:02:32]}  exf3 {[%clk 0:02:39]} 13. Bxf3 {[%clk 0:02:33]}  Re8 {[%clk 0:02:36]} 14. e4 {[%clk 0:02:33]}  fxe4 {[%clk 0:02:33]} 15. Nxe4 {[%clk 0:02:33]}  Bf5 {[%clk 0:02:32]} 16. Ng5+ {[%clk 0:02:32]}  Kg8 {[%clk 0:02:31]} 17. Nfe6 {[%clk 0:02:30]}  Qd7 {[%clk 0:02:24]} 18. Nxg7 {[%clk 0:02:28]}  Qxg7 {[%clk 0:02:19]} 19. Bd2 {[%clk 0:02:27]}  Nbd7 {[%clk 0:02:11]} 20. Ne6 {[%clk 0:02:25]}  Bxe6 {[%clk 0:02:03]} 21. dxe6 {[%clk 0:02:26]}  Ne5 {[%clk 0:02:03]} 22. Bc3 {[%clk 0:02:22]}  Nfg4 {[%clk 0:01:59]} 23. Bxg4 {[%clk 0:02:09]}  hxg4 {[%clk 0:01:54]} 24. Bxe5 {[%clk 0:02:09]}  Qxe5 {[%clk 0:01:43]} 25. Qxg4 {[%clk 0:02:06]}  Qxe6 {[%clk 0:01:27]} 26. Qxe6+ {[%clk 0:02:00]}  Rxe6 {[%clk 0:01:28]} 27. Rad1 {[%clk 0:02:01]}  Rae8 {[%clk 0:01:21]} 28. Rf2 {[%clk 0:01:57]}  Re3 {[%clk 0:01:16]} 29. Kg2 {[%clk 0:01:53]}  R8e6 {[%clk 0:01:11]} 30. b3 {[%clk 0:01:53]}  Rc3 {[%clk 0:01:02]} 31. Kh3 {[%clk 0:01:47]}  Ree3 {[%clk 0:00:55]} 32. Rg2 {[%clk 0:01:47]}  Rcd3 {[%clk 0:00:51]} 33. Rxd3 {[%clk 0:01:47]}  Rxd3 {[%clk 0:00:52]} 34. Re2 {[%clk 0:01:41]}  Kf7 {[%clk 0:00:50]} 35. Kg4 {[%clk 0:01:40]}  a6 {[%clk 0:00:48]} 36. Kf4 {[%clk 0:01:32]}  b5 {[%clk 0:00:47]} 37. g4 {[%clk 0:01:28]}  bxc4 {[%clk 0:00:44]} 38. bxc4 {[%clk 0:01:29]}  Rd4+ {[%clk 0:00:44]} 39. Re4 {[%clk 0:01:29]}  Rd2 {[%clk 0:00:44]} 40. Kg5 {[%clk 0:01:26]}  d5 {[%clk 0:00:20]} 41. cxd5 {[%clk 0:00:45]}  Rxd5+ {[%clk 0:00:21]} 42. Kh6 {[%clk 0:00:45]}  Rd4 {[%clk 0:00:19]} 43. Re3 {[%clk 0:00:09]}  Rxg4 {[%clk 0:00:19]} 44. Ra3 {[%clk 0:00:09]}  Rxh4+ {[%clk 0:00:18]} 45. Kg5 {[%clk 0:00:09]}  Rd4 {[%clk 0:00:18]} 46. Rxa6 {[%clk 0:00:09]}  Rd5+ {[%clk 0:00:19]} 47. Kf4 {[%clk 0:00:09]}  g5+ {[%clk 0:00:19]} 48. Kg4 {[%clk 0:00:09]}  c4 {[%clk 0:00:17]} 49. Rc6 {[%clk 0:00:09]}  Ra5 {[%clk 0:00:15]} 50. Rxc4 {[%clk 0:00:09]}  Rxa2 {[%clk 0:00:16]} 51. Kxg5 {[%clk 0:00:09]}  Ra5+ {[%clk 0:00:16]} 52. Kf4 {[%clk 0:00:08]}  Ke6 {[%clk 0:00:17]} 53. Re4+ {[%clk 0:00:08]}  Kd6 {[%clk 0:00:17]} 54. Ke3 {[%clk 0:00:08]}  Re5 {[%clk 0:00:17]} 55. Rxe5 {[%clk 0:00:09]}  Kxe5 {[%clk 0:00:18]} 1/2-1/2


[Site "https://www.chess.com"]

[Event "Titled Tuesday Blitz November 01 Early 2022"]
[White "Makhmudov, Shukhrat"]
[Black "Gireman, Ja"]
[WhiteFideId "14200775"]
[BlackFideId "5043794"]
[WhiteElo "2135"]
[BlackElo "2153"]
[Result "0-1"]
[Round "06"]
[TimeControl "180+1"]
[Date "2022.11.02"]
[WhiteClock "0:00:35"]
[BlackClock "0:00:50"]

1. e4 {[%clk 0:03:00]}  e6 {[%clk 0:02:59]} 2. Nf3 {[%clk 0:03:00]}  d5 {[%clk 0:03:00]} 3. e5 {[%clk 0:03:01]}  f6 {[%clk 0:03:00]} 4. d4 {[%clk 0:02:52]}  c5 {[%clk 0:03:01]} 5. c3 {[%clk 0:02:52]}  Nc6 {[%clk 0:03:01]} 6. a3 {[%clk 0:02:51]}  Qc7 {[%clk 0:03:01]} 7. exf6 {[%clk 0:02:51]}  gxf6 {[%clk 0:02:59]} 8. b4 {[%clk 0:02:51]}  c4 {[%clk 0:02:57]} 9. g3 {[%clk 0:02:47]}  Nge7 {[%clk 0:02:57]} 10. Bg2 {[%clk 0:02:47]}  e5 {[%clk 0:02:56]} 11. dxe5 {[%clk 0:02:46]}  fxe5 {[%clk 0:02:56]} 12. O-O {[%clk 0:02:47]}  Bf5 {[%clk 0:02:42]} 13. Nh4 {[%clk 0:02:43]}  Be6 {[%clk 0:02:36]} 14. b5 {[%clk 0:02:22]}  Na5 {[%clk 0:02:33]} 15. Qh5+ {[%clk 0:02:16]}  Bf7 {[%clk 0:02:32]} 16. Qg4 {[%clk 0:02:16]}  Nb3 {[%clk 0:02:23]} 17. Ra2 {[%clk 0:02:13]}  Rg8 {[%clk 0:02:23]} 18. Qf3 {[%clk 0:02:01]}  Nxc1 {[%clk 0:01:51]} 19. Rxc1 {[%clk 0:01:59]}  Bg7 {[%clk 0:01:51]} 20. Nf5 {[%clk 0:01:51]}  Nxf5 {[%clk 0:01:41]} 21. Qxf5 {[%clk 0:01:51]}  Qe7 {[%clk 0:01:33]} 22. Bh3 {[%clk 0:01:28]}  Bg6 {[%clk 0:01:23]} 23. Qg4 {[%clk 0:01:22]}  Bf6 {[%clk 0:01:21]} 24. Re1 {[%clk 0:00:58]}  Kf7 {[%clk 0:01:13]} 25. Qf3 {[%clk 0:00:52]}  Rad8 {[%clk 0:01:12]} 26. Bf5 {[%clk 0:00:43]}  Kg7 {[%clk 0:01:09]} 27. Bxg6 {[%clk 0:00:43]}  hxg6 {[%clk 0:01:10]} 28. Nd2 {[%clk 0:00:42]}  Qc5 {[%clk 0:01:07]} 29. Nf1 {[%clk 0:00:39]}  Rgf8 {[%clk 0:01:06]} 30. Ne3 {[%clk 0:00:38]}  e4 {[%clk 0:00:52]} 31. Qg2 {[%clk 0:00:36]}  Bxc3 {[%clk 0:00:50]} 32. Ng4 {[%clk 0:00:35]}  Bxe1 {[%clk 0:00:50]} 0-1


[Site "https://www.chess.com"]

[Event "Titled Tuesday Blitz November 01 Early 2022"]
[White "Malyi, Viacheslav"]
[Black "Korchmar, Vasiliy"]
[WhiteFideId "14123983"]
[BlackFideId "24131750"]
[WhiteElo "2529"]
[BlackElo "2694"]
[Result "1-0"]
[Round "06"]
[TimeControl "180+1"]
[Date "2022.11.02"]
[WhiteClock "0:00:24"]
[BlackClock "0:00:03"]

1. e4 {[%clk 0:03:00]}  c5 {[%clk 0:03:00]} 2. Nf3 {[%clk 0:03:00]}  d6 {[%clk 0:03:00]} 3. d4 {[%clk 0:03:00]}  cxd4 {[%clk 0:03:01]} 4. Nxd4 {[%clk 0:03:00]}  Nf6 {[%clk 0:03:02]} 5. Nc3 {[%clk 0:03:00]}  Nc6 {[%clk 0:03:03]} 6. Rg1 {[%clk 0:03:00]}  g6 {[%clk 0:03:01]} 7. g4 {[%clk 0:02:59]}  Bg7 {[%clk 0:03:01]} 8. Nb3 {[%clk 0:02:48]}  O-O {[%clk 0:02:59]} 9. g5 {[%clk 0:02:48]}  Nd7 {[%clk 0:02:57]} 10. Be3 {[%clk 0:02:47]}  a6 {[%clk 0:02:51]} 11. Qd2 {[%clk 0:02:47]}  Nde5 {[%clk 0:02:48]} 12. Be2 {[%clk 0:02:45]}  b5 {[%clk 0:02:47]} 13. O-O-O {[%clk 0:02:41]}  Rb8 {[%clk 0:02:36]} 14. Nd4 {[%clk 0:02:17]}  Bd7 {[%clk 0:02:33]} 15. Nxc6 {[%clk 0:02:16]}  Bxc6 {[%clk 0:02:33]} 16. Bd4 {[%clk 0:02:03]}  Qa5 {[%clk 0:02:25]} 17. Kb1 {[%clk 0:02:02]}  b4 {[%clk 0:02:18]} 18. Nd5 {[%clk 0:01:55]}  Bxd5 {[%clk 0:02:19]} 19. exd5 {[%clk 0:01:56]}  Qxd5 {[%clk 0:02:19]} 20. f4 {[%clk 0:01:57]}  Nc4 {[%clk 0:01:54]} 21. Bxc4 {[%clk 0:01:56]}  Qxc4 {[%clk 0:01:55]} 22. Bxg7 {[%clk 0:01:54]}  Kxg7 {[%clk 0:01:56]} 23. Rge1 {[%clk 0:01:54]}  Rfe8 {[%clk 0:01:50]} 24. h4 {[%clk 0:01:53]}  e5 {[%clk 0:01:32]} 25. Qxd6 {[%clk 0:01:47]}  exf4 {[%clk 0:00:51]} 26. b3 {[%clk 0:01:26]}  Qc3 {[%clk 0:00:48]} 27. Rxe8 {[%clk 0:01:18]}  Rxe8 {[%clk 0:00:48]} 28. Qxf4 {[%clk 0:01:18]}  Re2 {[%clk 0:00:45]} 29. Rc1 {[%clk 0:01:17]}  a5 {[%clk 0:00:40]} 30. Qg4 {[%clk 0:01:01]}  Qe5 {[%clk 0:00:28]} 31. h5 {[%clk 0:00:56]}  gxh5 {[%clk 0:00:27]} 32. Qxh5 {[%clk 0:00:57]}  Rg2 {[%clk 0:00:14]} 33. Qh6+ {[%clk 0:00:53]}  Kg8 {[%clk 0:00:14]} 34. Rd1 {[%clk 0:00:47]}  Qxg5 {[%clk 0:00:09]} 35. Qb6 {[%clk 0:00:38]}  Qg6 {[%clk 0:00:04]} 36. Qd8+ {[%clk 0:00:33]}  Kg7 {[%clk 0:00:04]} 37. Qd4+ {[%clk 0:00:33]}  Kg8 {[%clk 0:00:03]} 38. Qd8+ {[%clk 0:00:33]}  Kg7 {[%clk 0:00:04]} 39. Qd4+ {[%clk 0:00:34]}  Qf6 {[%clk 0:00:04]} 40. Qd5 {[%clk 0:00:29]}  Rf2 {[%clk 0:00:02]} 41. Rg1+ {[%clk 0:00:26]}  Kh6 {[%clk 0:00:03]} 42. Qh1+ {[%clk 0:00:24]} 1-0


[Site "https://www.chess.com"]

[Event "Titled Tuesday Blitz November 01 Early 2022"]
[White "Martinez Molina, Carlos Alberto"]
[Black "Chernobay, Artem"]
[WhiteFideId "5122708"]
[BlackFideId "4167406"]
[WhiteElo "2212"]
[BlackElo "2473"]
[Result "0-1"]
[Round "06"]
[TimeControl "180+1"]
[Date "2022.11.02"]
[WhiteClock "0:00:06"]
[BlackClock "0:00:06"]

1. d4 {[%clk 0:02:39]}  Nf6 {[%clk 0:02:59]} 2. c4 {[%clk 0:02:39]}  e6 {[%clk 0:02:59]} 3. Nc3 {[%clk 0:02:39]}  Bb4 {[%clk 0:02:59]} 4. Bd2 {[%clk 0:02:40]}  O-O {[%clk 0:02:59]} 5. Nf3 {[%clk 0:02:40]}  d5 {[%clk 0:02:59]} 6. e3 {[%clk 0:02:38]}  b6 {[%clk 0:02:58]} 7. Be2 {[%clk 0:02:37]}  Bb7 {[%clk 0:02:58]} 8. O-O {[%clk 0:02:38]}  a6 {[%clk 0:02:57]} 9. Rc1 {[%clk 0:02:37]}  dxc4 {[%clk 0:02:45]} 10. Bxc4 {[%clk 0:02:36]}  Nbd7 {[%clk 0:02:45]} 11. a3 {[%clk 0:02:36]}  Bd6 {[%clk 0:02:43]} 12. Qe2 {[%clk 0:02:36]}  e5 {[%clk 0:02:37]} 13. dxe5 {[%clk 0:02:23]}  Nxe5 {[%clk 0:02:36]} 14. Nxe5 {[%clk 0:02:24]}  Bxe5 {[%clk 0:02:37]} 15. Rfd1 {[%clk 0:02:25]}  Qe7 {[%clk 0:02:31]} 16. Be1 {[%clk 0:01:40]}  c5 {[%clk 0:01:59]} 17. Nd5 {[%clk 0:01:31]}  Nxd5 {[%clk 0:01:58]} 18. Bxd5 {[%clk 0:01:31]}  Rad8 {[%clk 0:01:53]} 19. Bxb7 {[%clk 0:01:24]}  Qxb7 {[%clk 0:01:54]} 20. Bc3 {[%clk 0:01:24]}  Bxc3 {[%clk 0:01:39]} 21. Rxc3 {[%clk 0:01:25]}  h6 {[%clk 0:01:17]} 22. h3 {[%clk 0:01:22]}  Qe4 {[%clk 0:00:56]} 23. Rcd3 {[%clk 0:01:05]}  Rxd3 {[%clk 0:00:51]} 24. Qxd3 {[%clk 0:01:06]}  Qxd3 {[%clk 0:00:51]} 25. Rxd3 {[%clk 0:01:07]}  Rb8 {[%clk 0:00:42]} 26. Rd7 {[%clk 0:00:51]}  b5 {[%clk 0:00:40]} 27. Rc7 {[%clk 0:00:51]}  c4 {[%clk 0:00:40]} 28. Kf1 {[%clk 0:00:51]}  a5 {[%clk 0:00:36]} 29. Ke2 {[%clk 0:00:51]}  g6 {[%clk 0:00:25]} 30. Kd2 {[%clk 0:00:49]}  h5 {[%clk 0:00:19]} 31. Kc3 {[%clk 0:00:48]}  Kg7 {[%clk 0:00:19]} 32. Ra7 {[%clk 0:00:20]}  b4+ {[%clk 0:00:18]} 33. Kxc4 {[%clk 0:00:19]}  bxa3 {[%clk 0:00:18]} 34. bxa3 {[%clk 0:00:19]}  Rb2 {[%clk 0:00:18]} 35. Rxa5 {[%clk 0:00:20]}  Rxf2 {[%clk 0:00:18]} 36. a4 {[%clk 0:00:20]}  Rxg2 {[%clk 0:00:18]} 37. Rb5 {[%clk 0:00:20]}  Rg3 {[%clk 0:00:18]} 38. Rb3 {[%clk 0:00:19]}  Rxh3 {[%clk 0:00:17]} 39. a5 {[%clk 0:00:19]}  Rh1 {[%clk 0:00:18]} 40. a6 {[%clk 0:00:19]}  Ra1 {[%clk 0:00:17]} 41. Kb5 {[%clk 0:00:19]}  Kf6 {[%clk 0:00:17]} 42. Rb4 {[%clk 0:00:19]}  g5 {[%clk 0:00:13]} 43. Ra4 {[%clk 0:00:19]}  Rb1+ {[%clk 0:00:13]} 44. Kc6 {[%clk 0:00:19]}  Rb8 {[%clk 0:00:14]} 45. Kc7 {[%clk 0:00:19]}  Rg8 {[%clk 0:00:13]} 46. a7 {[%clk 0:00:20]}  h4 {[%clk 0:00:13]} 47. Kd6 {[%clk 0:00:12]}  h3 {[%clk 0:00:12]} 48. e4 {[%clk 0:00:13]}  Ra8 {[%clk 0:00:10]} 49. Ra1 {[%clk 0:00:10]}  h2 {[%clk 0:00:10]} 50. e5+ {[%clk 0:00:08]}  Kf5 {[%clk 0:00:10]} 51. Rh1 {[%clk 0:00:02]}  Rxa7 {[%clk 0:00:09]} 52. Rxh2 {[%clk 0:00:03]}  g4 {[%clk 0:00:09]} 53. Rf2+ {[%clk 0:00:02]}  Ke4 {[%clk 0:00:09]} 54. e6 {[%clk 0:00:02]}  Ra6+ {[%clk 0:00:07]} 55. Kd7 {[%clk 0:00:02]}  fxe6 {[%clk 0:00:07]} 56. Ke7 {[%clk 0:00:02]}  g3 {[%clk 0:00:07]} 57. Rb2 {[%clk 0:00:02]}  Kf3 {[%clk 0:00:07]} 58. Kf6 {[%clk 0:00:02]}  g2 {[%clk 0:00:07]} 59. Rb3+ {[%clk 0:00:03]}  Kf2 {[%clk 0:00:07]} 60. Rb2+ {[%clk 0:00:03]}  Kg3 {[%clk 0:00:07]} 61. Kg5 {[%clk 0:00:04]}  g1=Q {[%clk 0:00:05]} 62. Rb3+ {[%clk 0:00:05]}  Kf2+ {[%clk 0:00:06]} 63. Kh4 {[%clk 0:00:05]}  Ra4+ {[%clk 0:00:06]} 64. Kh5 {[%clk 0:00:06]}  Qh2+ {[%clk 0:00:06]} 65. Rh3 {[%clk 0:00:06]}  Qxh3+ {[%clk 0:00:06]} 0-1


[Site "https://www.chess.com"]

[Event "Titled Tuesday Blitz November 01 Early 2022"]
[White "Mesa Cruz, Juan Carlos"]
[Black "Gheorghiu, Calin"]
[WhiteFideId "6423400"]
[BlackFideId "1200305"]
[WhiteElo "2059"]
[BlackElo "2225"]
[Result "0-1"]
[Round "06"]
[TimeControl "180+1"]
[Date "2022.11.02"]
[WhiteClock "0:00:20"]
[BlackClock "0:00:57"]

1. e4 {[%clk 0:03:00]}  e6 {[%clk 0:02:59]} 2. Qe2 {[%clk 0:02:56]}  e5 {[%clk 0:02:58]} 3. c3 {[%clk 0:02:56]}  Nc6 {[%clk 0:02:57]} 4. g3 {[%clk 0:02:56]}  Nf6 {[%clk 0:02:57]} 5. Bg2 {[%clk 0:02:56]}  d5 {[%clk 0:02:53]} 6. exd5 {[%clk 0:02:55]}  Nxd5 {[%clk 0:02:54]} 7. d4 {[%clk 0:02:51]}  Bf5 {[%clk 0:02:00]} 8. dxe5 {[%clk 0:02:40]}  Bc5 {[%clk 0:01:59]} 9. Qc4 {[%clk 0:02:31]}  Nxe5 {[%clk 0:01:27]} 10. Qxd5 {[%clk 0:02:10]}  Qe7 {[%clk 0:01:20]} 11. Ne2 {[%clk 0:01:31]}  Rd8 {[%clk 0:01:15]} 12. Qxb7 {[%clk 0:01:07]}  Nd3+ {[%clk 0:01:08]} 13. Kf1 {[%clk 0:01:06]}  Nxc1 {[%clk 0:01:03]} 14. Bc6+ {[%clk 0:00:39]}  Kf8 {[%clk 0:01:03]} 15. Nd4 {[%clk 0:00:20]}  Bh3+ {[%clk 0:00:57]} 16. Bg2 {[%clk 0:00:20]}  Qe2+ {[%clk 0:00:57]} 0-1


[Site "https://www.chess.com"]

[Event "Titled Tuesday Blitz November 01 Early 2022"]
[White "Mihailidis, Anastasios"]
[Black "Quirke, Jeffrey"]
[WhiteFideId "4205588"]
[BlackFideId "2013029"]
[WhiteElo "2312"]
[BlackElo "2198"]
[Result "1-0"]
[Round "06"]
[TimeControl "180+1"]
[Date "2022.11.02"]
[WhiteClock "0:00:53"]
[BlackClock "0:00:01"]

1. e4 {[%clk 0:03:00]}  c5 {[%clk 0:02:59]} 2. Nf3 {[%clk 0:03:01]}  g6 {[%clk 0:02:59]} 3. d4 {[%clk 0:03:00]}  cxd4 {[%clk 0:03:00]} 4. Nxd4 {[%clk 0:03:00]}  Nf6 {[%clk 0:03:00]} 5. f3 {[%clk 0:03:00]}  d5 {[%clk 0:02:53]} 6. Bb5+ {[%clk 0:02:57]}  Bd7 {[%clk 0:02:52]} 7. Bxd7+ {[%clk 0:02:56]}  Nbxd7 {[%clk 0:02:43]} 8. exd5 {[%clk 0:02:53]}  Nxd5 {[%clk 0:02:40]} 9. O-O {[%clk 0:02:53]}  Bg7 {[%clk 0:02:39]} 10. c3 {[%clk 0:02:50]}  O-O {[%clk 0:02:37]} 11. Kh1 {[%clk 0:02:41]}  e5 {[%clk 0:02:29]} 12. Nf5 {[%clk 0:02:36]}  Nxc3 {[%clk 0:02:15]} 13. Nxc3 {[%clk 0:02:35]}  gxf5 {[%clk 0:02:15]} 14. Qc2 {[%clk 0:02:35]}  Qf6 {[%clk 0:01:54]} 15. Nd5 {[%clk 0:02:34]}  Qe6 {[%clk 0:01:54]} 16. Nc7 {[%clk 0:02:29]}  Rac8 {[%clk 0:01:54]} 17. Nxe6 {[%clk 0:02:27]}  Rxc2 {[%clk 0:01:53]} 18. Nxf8 {[%clk 0:02:27]}  Kxf8 {[%clk 0:01:49]} 19. Rd1 {[%clk 0:02:26]}  Ke7 {[%clk 0:01:46]} 20. b3 {[%clk 0:02:21]}  e4 {[%clk 0:01:45]} 21. Ba3+ {[%clk 0:02:20]}  Ke8 {[%clk 0:01:41]} 22. Rac1 {[%clk 0:02:19]}  Rxc1 {[%clk 0:01:34]} 23. Rxc1 {[%clk 0:02:19]}  Ne5 {[%clk 0:01:31]} 24. fxe4 {[%clk 0:02:17]}  fxe4 {[%clk 0:01:30]} 25. Re1 {[%clk 0:02:11]}  f5 {[%clk 0:01:30]} 26. h3 {[%clk 0:01:55]}  Nd3 {[%clk 0:01:29]} 27. Re2 {[%clk 0:01:56]}  Bd4 {[%clk 0:01:20]} 28. g4 {[%clk 0:01:51]}  Nf4 {[%clk 0:01:03]} 29. Re1 {[%clk 0:01:39]}  e3 {[%clk 0:00:36]} 30. gxf5 {[%clk 0:01:23]}  e2 {[%clk 0:00:36]} 31. Bd6 {[%clk 0:01:22]}  Bc3 {[%clk 0:00:31]} 32. Rc1 {[%clk 0:01:17]}  Bd2 {[%clk 0:00:26]} 33. Ra1 {[%clk 0:01:12]}  Nd3 {[%clk 0:00:21]} 34. Bg3 {[%clk 0:01:10]}  e1=Q+ {[%clk 0:00:20]} 35. Bxe1 {[%clk 0:01:09]}  Nxe1 {[%clk 0:00:15]} 36. Rd1 {[%clk 0:01:08]}  Nf3 {[%clk 0:00:15]} 37. Kg2 {[%clk 0:01:09]}  Nd4 {[%clk 0:00:03]} 38. Rxd2 {[%clk 0:01:08]}  Nxf5 {[%clk 0:00:04]} 39. Kf3 {[%clk 0:01:06]}  Ke7 {[%clk 0:00:03]} 40. Ke4 {[%clk 0:01:04]}  Nd6+ {[%clk 0:00:02]} 41. Ke5 {[%clk 0:01:01]}  Nf7+ {[%clk 0:00:02]} 42. Kf5 {[%clk 0:01:00]}  Nd6+ {[%clk 0:00:02]} 43. Kg4 {[%clk 0:00:57]}  Nf7 {[%clk 0:00:02]} 44. Rc2 {[%clk 0:00:53]}  Kd7 {[%clk 0:00:01]} 45. Kf5 {[%clk 0:00:53]}  Nd6+ {[%clk 0:00:01]} 46. Kf6 {[%clk 0:00:53]} 1-0


[Site "https://www.chess.com"]